bitfinex/quotes_SOLUSD_20240821
["timestamp","ask_amount","ask_price","bid_price","bid_amount"]
[1724264496973,7.0156,142.54,142.48,7.018]
[1724264497270,7.0156,142.54,142.49,7.0179]
[1724264497460,7.015,142.55,142.49,7.0179]
[1724264497645,41.38,142.56,142.47,24.5656]
[1724264497843,45.0,142.55,142.47,17.5471]
[1724264498266,7.0156,142.54,142.48,7.0185]
[1724264499056,7.0151,142.55,142.47,17.5471]
[1724264499847,7.0158,142.54,142.48,7.018]
[1724264500069,7.0161,142.53,142.48,7.018]
[1724264500278,7.0156,142.54,142.48,7.018]
[1724264500572,7.016,142.53,142.47,24.566]
[1724264500950,7.016,142.53,142.48,7.0183]
[1724264501149,7.0155,142.54,142.48,7.0183]
[1724264501968,7.0155,142.54,142.49,7.0178]
[1724264502480,7.0167,142.52,142.47,24.566]
[1724264502649,7.0167,142.52,142.47,17.5471]
[1724264502856,1.35141415,142.51,142.47,17.5471]
[1724264503066,7.0167,142.52,142.47,17.5471]
[1724264503569,7.0176,142.5,142.45,7.0199]
[1724264503777,41.38,142.52,142.44,17.5508]
[1724264503950,7.0179,142.5,142.44,24.5711]
[1724264504273,41.38,142.5,142.41,17.5544]
[1724264504450,20.0,142.49,142.41,17.5544]
[1724264505176,7.0186,142.48,142.43,7.0205]
[1724264505469,20.0,142.49,142.41,17.5544]
[1724264505470,27.018,142.49,142.44,7.0204]
[1724264505673,7.018,142.49,142.44,7.0204]
[1724264505861,7.0185,142.48,142.43,7.0209]
[1724264506058,7.019,142.47,142.42,7.0213]
[1724264506571,7.0195,142.46,142.41,17.5544]
[1724264506772,7.02,142.45,142.41,17.5544]
[1724264506951,7.0196,142.46,142.41,24.5763]
[1724264507144,8.37141415,142.45,142.41,17.5544]
[1724264507343,7.02,142.45,142.41,17.5544]
[1724264507755,6.6433,142.48,142.43,7.0209]
[1724264507950,41.38,142.5,142.44,7.0204]
[1724264508182,7.0176,142.5,142.44,7.0204]
[1724264508670,7.0181,142.49,142.44,7.0204]
[1724264509642,7.0176,142.5,142.44,7.0204]
[1724264510070,7.0176,142.5,142.45,7.0199]
[1724264510884,1.35141415,142.49,142.43,17.5518]
[1724264511071,41.38,142.48,142.43,17.5518]
[1724264511268,48.3989,142.48,142.43,7.0206]
[1724264511854,7.018,142.49,142.44,7.0203]
[1724264512175,20.0,142.48,142.44,7.0203]
[1724264512379,28.37011415,142.48,142.42,24.5738]
[1724264512585,27.0187,142.48,142.43,7.0208]
[1724264512948,7.019,142.47,142.42,24.5741]
[1724264513148,61.38,142.48,142.42,24.5741]
[1724264513353,7.0195,142.46,142.42,17.5528]
[1724264513653,48.3995,142.46,142.42,17.5528]
[1724264513981,41.38,142.46,142.42,24.5742]
[1724264514469,48.3995,142.46,142.42,24.5742]
[1724264514854,1.35141415,142.45,142.39,17.5565]
[1724264515056,7.0207,142.44,142.39,24.579]
[1724264515251,48.4007,142.44,142.39,24.579]
[1724264515480,27.021,142.43,142.39,24.579]
[1724264515776,27.021,142.43,142.37,7.0238]
[1724264515777,1.35141415,142.42,142.37,7.0238]
[1724264515980,42.73141415,142.42,142.36,24.5848]
[1724264516185,20.0,142.41,142.36,17.5605]
[1724264516349,1.35141415,142.4,142.36,17.5605]
[1724264516554,1.35141415,142.4,142.32,6.0998]
[1724264516555,49.75391415,142.4,142.34,7.0253]
[1724264516876,45.0,142.39,142.34,7.0253]
[1724264518155,20.0,142.41,142.3,76.5166]
[1724264518374,47.6041,142.44,142.3,96.5166]
[1724264518375,20.0,142.43,142.3,96.5166]
[1724264518650,20.0,142.43,142.38,24.5817]
[1724264519071,20.0,142.43,142.38,17.5584]
[1724264519485,20.0,142.43,142.36,7.024]
[1724264519650,27.021,142.43,142.37,7.0238]
[1724264520478,20.0,142.43,142.38,7.0232]
[1724264520790,45.0,142.42,142.37,7.0239]
[1724264520986,20.0,142.41,142.38,7.0232]
[1724264521169,20.0,142.43,142.34,35.1247]
[1724264521565,20.0,142.44,142.39,24.5792]
[1724264521959,20.0,142.44,142.39,17.5564]
[1724264522369,15.3026,142.45,142.39,17.5564]
[1724264522573,47.8281,142.48,142.42,7.0213]
[1724264523891,54.847,142.48,142.41,24.5755]
[1724264524097,47.8281,142.48,142.42,7.0213]
[1724264524787,41.38,142.48,142.38,35.1165]
[1724264524988,15.9043,142.49,142.44,7.0203]
[1724264525567,41.38,142.48,142.43,17.5512]
[1724264526168,20.0,142.47,142.43,17.5512]
[1724264526564,42.73141415,142.46,142.41,7.0219]
[1724264526889,1.35141415,142.45,142.41,7.0219]
[1724264527268,41.38,142.46,142.42,7.0213]
[1724264527589,20.0,142.47,142.43,7.0205]
[1724264527799,20.0,142.48,142.45,7.0196]
[1724264527977,15.9043,142.49,142.46,7.0194]
[1724264528370,16.1444,142.53,142.47,1.40369766]
[1724264528565,16.1444,142.53,142.42,35.1065]
[1724264528566,16.1444,142.53,142.48,17.5457]
[1724264529098,7.0171,142.51,142.45,24.5694]
[1724264529394,41.38,142.5,142.45,24.5694]
[1724264529602,41.38,142.5,142.45,17.5495]
[1724264529809,21.35141415,142.49,142.45,17.5495]
[1724264529974,42.73141415,142.48,142.44,7.0204]
[1724264530172,41.38,142.48,142.43,7.0209]
[1724264530571,20.0,142.49,142.44,7.0204]
[1724264530770,45.0,142.48,142.44,7.0204]
[1724264531385,86.38,142.48,142.38,41.6504]
[1724264531708,41.38,142.46,142.41,7.0219]
[1724264532074,20.0,142.45,142.41,7.0219]
[1724264532497,20.0,142.45,142.4,7.0223]
[1724264532700,94.75191415,142.44,142.38,7.0233]
[1724264533003,20.0,142.43,142.38,7.0232]
[1724264533399,20.0,142.43,142.39,7.0226]
[1724264534182,21.35141415,142.43,142.39,7.0226]
[1724264534598,20.0,142.43,142.39,7.0226]
[1724264534772,15.3571,142.45,142.4,17.5556]
[1724264535181,15.3571,142.45,142.41,7.0218]
[1724264536003,48.0226,142.48,142.43,7.0209]
[1724264536182,28.37051415,142.47,142.41,7.0219]
[1724264536380,48.3996,142.46,142.4,24.578]
[1724264536601,28.37141415,142.45,142.4,17.5556]
[1724264536788,27.02,142.45,142.4,17.5556]
[1724264536982,27.02,142.45,142.4,24.578]
[1724264536983,20.0,142.45,142.4,24.578]
[1724264537405,7.0201,142.45,142.4,17.5556]
[1724264537720,45.0,142.44,142.4,17.5556]
[1724264538709,52.0205,142.44,142.38,7.0233]
[1724264539029,45.0,142.44,142.39,17.5566]
[1724264539223,6.6426,142.48,142.43,17.552]
[1724264539508,16.5889,142.49,142.43,24.5725]
[1724264540888,23.607,142.49,142.43,24.5725]
[1724264541095,23.607,142.49,142.43,17.552]
[1724264541409,45.0,142.48,142.43,24.5728]
[1724264542109,93.3987,142.48,142.43,17.552]
[1724264542815,93.3987,142.48,142.4,17.5561]
[1724264542816,41.38,142.46,142.4,17.5561]
[1724264543323,45.0,142.45,142.4,24.5782]
[1724264543492,52.02,142.45,142.39,7.0228]
[1724264543689,45.0,142.45,142.4,7.0222]
[1724264544892,45.0,142.45,142.42,7.0214]
[1724264545199,23.6073,142.49,142.45,7.0199]
[1724264545200,16.5889,142.49,142.45,7.0199]
[1724264545523,16.5889,142.49,142.43,17.5517]
[1724264545693,16.5889,142.49,142.4,17.5556]
[1724264545899,23.6073,142.49,142.43,7.0209]
[1724264546421,52.0185,142.48,142.42,7.0213]
[1724264547100,53.36991415,142.48,142.42,7.0213]
[1724264547294,93.3985,142.48,142.42,7.0213]
[1724264547512,45.0,142.48,142.42,17.5525]
[1724264547721,45.0,142.48,142.43,7.0206]
[1724264548106,52.0185,142.48,142.42,24.5736]
[1724264548706,41.38,142.46,142.38,17.5577]
[1724264548889,46.35141415,142.45,142.4,7.0224]
[1724264549719,46.35141415,142.45,142.32,16.6087]
[1724264549720,21.5218,142.43,142.35,21.69138586]
[1724264549928,86.38,142.42,142.35,17.5616]
[1724264550128,86.38,142.42,142.36,7.0244]
[1724264550336,7.0222,142.41,142.35,24.5864]
[1724264550530,87.73141415,142.4,142.35,17.5616]
[1724264550827,1.35141415,142.39,142.35,17.5616]
[1724264551193,86.38,142.4,142.35,17.5616]
[1724264552209,45.0,142.4,142.35,17.5616]
[1724264553125,21.5218,142.43,142.36,7.024]
[1724264553323,28.5431,142.43,142.36,7.024]
[1724264553493,1.35141415,142.42,142.36,7.024]
[1724264553698,1.35141415,142.41,142.35,24.5864]
[1724264554127,7.0218,142.42,142.35,24.5864]
[1724264554303,45.0,142.41,142.35,24.5864]
[1724264554623,45.0,142.41,142.35,24.586]
[1724264554930,45.0,142.41,142.36,7.0243]
[1724264555128,45.0,142.41,142.37,7.0239]
[1724264555309,45.0,142.42,142.37,7.0239]
[1724264555621,46.35141415,142.42,142.36,7.0243]
[1724264555822,47.832,142.47,142.42,7.0214]
[1724264556031,21.9025,142.47,142.42,7.0214]
[1724264556223,15.4505,142.47,142.43,7.0208]
[1724264556540,15.4505,142.47,142.41,17.5543]
[1724264556703,22.0413,142.5,142.43,17.5516]
[1724264556899,22.0413,142.5,142.44,7.0204]
[1724264557122,1.35141415,142.49,142.43,17.5516]
[1724264557299,7.018,142.49,142.43,24.5725]
[1724264557508,8.37001415,142.48,142.43,17.5516]
[1724264557714,7.0195,142.47,142.41,7.0218]
[1724264557928,45.0,142.47,142.42,7.0213]
[1724264558712,22.0413,142.5,142.43,7.0209]
[1724264558713,29.0589,142.5,142.43,7.0209]
[1724264559117,29.0589,142.5,142.44,7.0203]
[1724264559314,7.018,142.49,142.43,7.0208]
[1724264559723,1.35141415,142.48,142.43,7.0208]
[1724264560341,1.35141415,142.48,142.42,24.5742]
[1724264560342,53.36991415,142.48,142.42,24.5742]
[1724264560924,53.36991415,142.48,142.39,17.5568]
[1724264560925,46.35141415,142.48,142.39,17.5568]
[1724264561122,22.0413,142.5,142.43,7.0209]
[1724264561123,52.0184,142.49,142.43,7.0209]
[1724264561327,113.3984,142.49,142.43,7.0209]
[1724264561849,1.35141415,142.48,142.43,7.0209]
[1724264562022,113.3984,142.49,142.43,7.0209]
[1724264562428,86.38,142.49,142.39,35.1145]
[1724264562617,15.5893,142.5,142.39,76.4945]
[1724264562813,15.5893,142.5,142.4,20.0]
[1724264563740,1.35141415,142.52,142.45,17.5491]
[1724264563941,275.6695,142.54,142.45,17.5491]
[1724264564239,21.4695,142.54,142.45,17.5491]
[1724264564447,28.4854,142.54,142.48,7.0184]
[1724264565452,21.4695,142.54,142.49,7.0179]
[1724264565625,7.0151,142.55,142.49,7.0179]
[1724264567153,45.0,142.54,142.49,7.0179]
[1724264567524,45.0,142.54,142.47,23.5714]
[1724264567756,7.016,142.53,142.47,24.5655]
[1724264567955,45.0,142.52,142.48,7.0182]
[1724264568141,52.0157,142.54,142.48,7.0182]
[1724264569143,52.0157,142.54,142.49,7.0179]
[1724264569735,52.0157,142.54,142.48,7.0183]
[1724264569951,45.0,142.54,142.47,17.5469]
[1724264570165,7.0167,142.52,142.47,24.5658]
[1724264570337,45.0,142.51,142.47,24.5658]
[1724264570538,48.3962,142.53,142.47,24.5658]
[1724264570750,7.0176,142.5,142.44,23.6084]
[1724264571061,86.38,142.49,142.44,24.5707]
[1724264571245,45.0,142.49,142.44,24.5707]
[1724264572356,45.0,142.49,142.45,7.0199]
[1724264573335,41.38,142.53,142.46,17.5483]
[1724264573559,15.8464,142.55,142.48,7.0181]
[1724264573560,7.0158,142.54,142.48,7.0181]
[1724264573763,57.2264,142.55,142.48,17.5457]
[1724264574664,57.2264,142.55,142.48,7.0184]
[1724264575760,52.0156,142.54,142.48,7.0184]
[1724264576241,45.0,142.54,142.49,7.0178]
[1724264578168,52.0156,142.54,142.48,7.0183]
[1724264578637,15.2364,142.48,142.35,41.4406]
[1724264578841,41.38,142.42,142.35,41.4406]
[1724264579153,41.38,142.42,142.38,24.5814]
[1724264579459,7.0235,142.38,142.31,7.0266]
[1724264579634,57.4673,142.4,142.31,7.0266]
[1724264579635,41.38,142.37,142.32,7.0263]
[1724264580048,16.0873,142.4,142.36,7.0243]
[1724264580873,41.38,142.43,142.37,7.0238]
[1724264583059,41.38,142.43,142.38,7.0232]
[1724264583278,42.73141415,142.43,142.38,7.0232]
[1724264583984,41.38,142.43,142.39,7.0229]
[1724264584169,15.1852,142.44,142.4,7.0223]
[1724264584358,41.38,142.47,142.39,17.5566]
[1724264584555,41.38,142.47,142.35,35.1235]
[1724264584556,57.2299,142.49,142.43,7.0209]
[1724264584774,6.3246,142.52,142.43,17.5515]
[1724264584976,6.3246,142.52,142.4,6.4725]
[1724264584977,54.7213,142.52,142.46,7.019]
[1724264585649,47.7046,142.52,142.46,7.019]
[1724264585968,15.8499,142.53,142.47,17.5465]
[1724264586163,54.8727,142.56,142.47,17.5465]
[1724264586553,54.8727,142.56,142.43,20.0]
[1724264586554,47.8582,142.56,142.5,7.017]
[1724264586755,41.38,142.56,142.49,17.5441]
[1724264587482,15.6399,142.57,142.49,17.5441]
[1724264587782,7.0121,142.61,142.55,7.015]
[1724264588479,63.6736,142.63,142.56,7.0145]
[1724264588975,56.6621,142.63,142.57,7.014]
[1724264589150,1.35141415,142.62,142.55,17.5365]
[1724264589482,63.6732,142.63,142.55,24.551]
[1724264589679,7.0116,142.62,142.55,24.551]
[1724264589883,7.0116,142.62,142.53,7.0156]
[1724264589884,48.3931,142.59,142.53,7.0156]
[1724264590085,41.38,142.57,142.52,24.5578]
[1724264590574,41.38,142.57,142.52,17.5413]
[1724264590784,41.38,142.55,142.49,24.5626]
[1724264591154,48.3952,142.55,142.49,17.5449]
[1724264591660,41.38,142.55,142.49,17.5449]
[1724264592166,41.38,142.55,142.5,7.0173]
[1724264592380,7.0145,142.56,142.49,24.5628]
[1724264592875,93.3952,142.55,142.49,24.5628]
[1724264593065,93.3952,142.55,142.49,17.5449]
[1724264593457,93.3952,142.55,142.49,24.5628]
[1724264594763,41.38,142.55,142.5,7.0173]
[1724264595072,7.0145,142.57,142.5,7.0173]
[1724264595268,1.35141415,142.56,142.5,7.0173]
[1724264596078,41.38,142.57,142.49,17.5449]
[1724264596265,45.0,142.56,142.49,17.5449]
[1724264596882,52.0146,142.56,142.49,24.5627]
[1724264597667,41.38,142.59,142.49,17.5449]
[1724264597866,20.0,142.58,142.49,17.5449]
[1724264598264,27.0136,142.58,142.52,7.0165]
[1724264598883,41.38,142.59,142.51,17.5418]
[1724264599086,41.38,142.59,142.53,7.0159]
[1724264599467,32.8101,142.63,142.53,7.0159]
[1724264599468,48.3922,142.61,142.53,17.5393]
[1724264599662,48.3922,142.61,142.54,7.0155]
[1724264600074,7.0126,142.6,142.54,7.0155]
[1724264600764,7.0131,142.59,142.53,24.5552]
[1724264601787,45.0,142.58,142.53,24.5552]
[1724264602184,52.0136,142.58,142.53,17.5393]
[1724264602355,7.0146,142.56,142.5,7.0174]
[1724264602559,8.36601415,142.56,142.5,7.0174]
[1724264602757,8.36601415,142.56,142.44,41.38]
[1724264602758,41.38,142.57,142.52,24.5575]
[1724264602968,45.0,142.56,142.51,7.017]
[1724264603169,1.35141415,142.55,142.49,17.5446]
[1724264603699,1.35141415,142.55,142.5,7.0171]
[1724264604192,1.35141415,142.54,142.49,17.5446]
[1724264604601,7.0156,142.54,142.49,17.5446]
[1724264605108,7.0162,142.53,142.48,7.0185]
[1724264605320,7.0156,142.54,142.48,7.0185]
[1724264605477,86.38,142.55,142.42,61.38]
[1724264605678,41.38,142.59,142.47,35.0944]
[1724264605883,7.0146,142.56,142.5,17.5429]
[1724264606309,7.0146,142.56,142.5,24.5603]
[1724264606998,41.38,142.59,142.5,17.5429]
[1724264607203,65.0,142.58,142.51,7.017]
[1724264607599,7.0146,142.56,142.5,24.5603]
[1724264607805,7.0151,142.55,142.5,17.5429]
[1724264608110,7.0146,142.56,142.5,24.5604]
[1724264608311,7.015,142.55,142.5,17.5429]
[1724264608598,1.35141415,142.54,142.49,7.0179]
[1724264608975,7.015,142.55,142.49,7.0179]
[1724264609903,41.38,142.57,142.47,35.0945]
[1724264610078,41.38,142.57,142.51,7.0169]
[1724264610279,7.0146,142.56,142.5,7.0174]
[1724264610778,7.0151,142.55,142.49,7.0178]
[1724264611003,1.35141415,142.54,142.49,7.0178]
[1724264611189,7.0147,142.56,142.5,7.0175]
[1724264611500,52.0152,142.55,142.49,7.0179]
[1724264612078,52.0152,142.55,142.48,17.5456]
[1724264612079,7.0162,142.53,142.47,7.019]
[1724264613606,7.0162,142.53,142.48,7.0185]
[1724264614003,7.0162,142.53,142.45,17.5493]
[1724264614004,7.0162,142.53,142.47,7.0188]
[1724264614211,7.0168,142.52,142.45,17.5493]
[1724264614510,7.0168,142.52,142.46,7.0191]
[1724264614693,7.0168,142.52,142.47,7.0189]
[1724264615280,7.0161,142.53,142.47,6.5189]
[1724264615502,101.7525,142.55,142.47,17.5469]
[1724264615704,67.3879,142.55,142.49,7.0177]
[1724264616078,7.0155,142.54,142.49,7.0177]
[1724264616283,15.3725,142.55,142.49,7.0177]
[1724264617309,22.3879,142.55,142.49,7.0177]
[1724264618209,16.72391415,142.55,142.49,17.5443]
[1724264618415,7.0142,142.57,142.52,7.0164]
[1724264618600,22.6016,142.59,142.53,7.0159]
[1724264618916,22.6016,142.59,142.55,7.015]
[1724264618917,15.5884,142.59,142.55,7.015]
[1724264619127,15.5884,142.59,142.53,17.5394]
[1724264619306,15.5884,142.59,142.54,7.0154]
[1724264619629,7.0126,142.6,142.54,7.0154]
[1724264621122,20.0,142.59,142.54,7.0154]
[1724264621317,7.0121,142.61,142.55,7.015]
[1724264621509,52.0121,142.61,142.55,7.015]
[1724264621706,52.0121,142.61,142.55,6.515]
[1724264622604,16.6159,142.62,142.57,7.0139]
[1724264622806,47.9118,142.66,142.58,7.0132]
[1724264622807,63.4289,142.66,142.58,7.0132]
[1724264623015,63.4289,142.66,142.54,35.0776]
[1724264623016,15.5171,142.66,142.59,1.40248153]
[1724264623217,15.5171,142.66,142.61,7.0116]
[1724264623522,7.0092,142.67,142.61,7.0116]
[1724264624101,7.0092,142.67,142.62,7.0116]
[1724264624506,7.0092,142.67,142.61,7.012]
[1724264624712,7.0111,142.63,142.58,7.0136]
[1724264624895,41.38,142.64,142.55,43.9879]
[1724264625229,7.0117,142.62,142.56,7.0142]
[1724264625419,8.36261415,142.63,142.57,7.014]
[1724264625617,1.35141415,142.63,142.58,7.0135]
[1724264625824,1.35141415,142.62,142.57,24.5485]
[1724264626325,45.0,142.63,142.58,7.0136]
[1724264626512,53.36251415,142.63,142.58,7.0136]
[1724264626710,46.35141415,142.63,142.58,7.0136]
[1724264627117,48.3907,142.64,142.58,7.0136]
[1724264627301,1.35141415,142.63,142.58,7.0136]
[1724264628303,48.3907,142.64,142.58,7.0136]
[1724264628714,7.0103,142.65,142.57,17.5345]
[1724264629034,41.38,142.66,142.55,6.4514]
[1724264629035,48.3898,142.66,142.6,7.0124]
[1724264629211,20.0,142.65,142.6,7.0124]
[1724264629408,1.35141415,142.64,142.59,24.545]
[1724264629608,41.38,142.66,142.6,7.0125]
[1724264629805,1.35141415,142.65,142.6,7.0125]
[1724264630009,7.0102,142.65,142.59,24.5449]
[1724264630232,7.0102,142.65,142.6,7.0125]
[1724264630931,7.0102,142.65,142.59,24.5449]
[1724264631137,8.36161415,142.65,142.59,24.5449]
[1724264631302,7.0102,142.65,142.59,24.5449]
[1724264631828,48.3899,142.66,142.6,7.0125]
[1724264632212,41.38,142.66,142.61,7.012]
[1724264632411,7.0092,142.67,142.61,7.012]
[1724264632625,20.0,142.66,142.61,7.012]
[1724264632821,48.3888,142.68,142.62,7.0114]
[1724264633030,45.0,142.67,142.62,7.0114]
[1724264633337,52.0092,142.67,142.61,24.5417]
[1724264633929,7.0097,142.66,142.61,17.5298]
[1724264634137,7.0097,142.66,142.61,17.4372]
[1724264634326,52.0092,142.67,142.61,24.4492]
[1724264634534,52.0092,142.67,142.62,7.0115]
[1724264634826,41.38,142.68,142.61,17.4372]
[1724264635034,7.0092,142.67,142.62,7.0116]
[1724264636228,41.38,142.64,142.58,17.5336]
[1724264636431,48.3907,142.64,142.58,17.5336]
[1724264636929,7.0107,142.64,142.58,17.5336]
[1724264637234,41.38,142.68,142.61,7.012]
[1724264637536,52.0095,142.67,142.61,7.0119]
[1724264637741,7.0095,142.67,142.61,7.0119]
[1724264638618,7.0087,142.68,142.62,7.0114]
[1724264639218,7.0093,142.67,142.62,7.0114]
[1724264639430,7.0093,142.67,142.61,7.012]
[1724264640617,1.35141415,142.66,142.61,7.012]
[1724264640826,17.5189,142.71,142.61,7.012]
[1724264640827,17.5149,142.74,142.62,7.92480253]
[1724264641036,7.0076,142.71,142.65,7.0098]
[1724264641911,40.0876,142.71,142.65,7.0098]
[1724264642635,40.0873,142.71,142.65,7.0098]
[1724264642937,45.0,142.7,142.65,7.0098]
[1724264643115,40.0873,142.71,142.66,7.0096]
[1724264643549,1.35141415,142.7,142.66,7.0096]
[1724264645541,33.08,142.71,142.66,7.0096]
[1724264645846,10.0,142.72,142.67,7.009]
[1724264646042,11.35141415,142.72,142.66,24.5333]
[1724264646540,10.0,142.72,142.66,24.5333]
[1724264646743,17.0068,142.72,142.66,24.5333]
[1724264647040,1.35141415,142.71,142.66,24.5333]
[1724264648040,11.35141415,142.72,142.67,7.009]
[1724264648243,10.0,142.72,142.69,7.0081]
[1724264648442,10.0,142.72,142.68,24.5299]
[1724264648743,10.0,142.72,142.66,7.0095]
[1724264648942,1.35141415,142.71,142.66,7.0095]
[1724264649147,7.0077,142.7,142.65,24.5341]
[1724264649442,85.0873,142.71,142.65,24.5341]
[1724264649637,85.0873,142.71,142.65,17.5244]
[1724264649830,1.35141415,142.7,142.65,24.5341]
[1724264650146,1.35141415,142.7,142.66,7.0094]
[1724264650832,33.08,142.71,142.66,7.0094]
[1724264651028,34.43141415,142.71,142.66,7.0094]
[1724264651234,7.0077,142.7,142.65,17.5244]
[1724264651432,7.0077,142.7,142.65,24.5344]
[1724264652154,1.35141415,142.69,142.65,17.5244]
[1724264652650,1.35141415,142.69,142.64,7.0105]
[1724264652651,7.0082,142.69,142.64,7.0105]
[1724264652850,7.0078,142.7,142.65,7.0101]
[1724264653225,1.35141415,142.69,142.65,7.0101]
[1724264653425,1.35141415,142.69,142.64,7.0106]
[1724264654732,7.0078,142.7,142.64,7.0106]
[1724264654934,40.0872,142.71,142.65,7.01]
[1724264655141,45.0,142.7,142.65,7.01]
[1724264655742,40.0872,142.71,142.65,7.01]
[1724264656051,1.35141415,142.7,142.66,7.0095]
[1724264657255,10.0,142.72,142.64,17.5257]
[1724264657564,1.35141415,142.71,142.64,17.5257]
[1724264657747,17.0068,142.72,142.66,7.0092]
[1724264657932,1.35141415,142.71,142.66,7.0092]
[1724264658523,17.0068,142.72,142.65,35.0498]
[1724264658524,10.0,142.72,142.65,35.0498]
[1724264658969,10.0,142.72,142.62,26.5227]
[1724264658970,10.0,142.72,142.62,6.5227]
[1724264659127,10.0,142.72,142.69,17.5197]
[1724264659537,10.0,142.72,142.7,7.0072]
[1724264660135,10.0,142.72,142.69,24.5278]
[1724264661434,10.0,142.72,142.71,7.0072]
[1724264663957,10.0,142.72,142.7,7.0076]
[1724264664652,10.0,142.72,142.71,7.0072]
[1724264668354,0.8339037,142.75,142.74,24.52]
[1724264669269,0.8339037,142.75,142.74,59.5487]
[1724264669558,0.8339037,142.75,142.74,92.6287]
[1724264670231,0.8339037,142.75,142.74,59.5487]
[1724264672051,67.08835,142.82,142.78,7.0037]
[1724264672550,67.08835,142.82,142.77,7.0041]
[1724264672752,74.09015,142.82,142.76,17.511]
[1724264673271,67.08835,142.82,142.78,7.0037]
[1724264673684,67.08835,142.82,142.77,7.0041]
[1724264673873,67.08835,142.82,142.78,7.0037]
[1724264675173,74.09025,142.82,142.76,24.5156]
[1724264675383,67.08835,142.82,142.76,24.5156]
[1724264675684,67.08835,142.82,142.77,7.0041]
[1724264676175,67.08835,142.82,142.78,7.0037]
[1724264676550,67.08835,142.82,142.77,7.0041]
[1724264677174,67.08835,142.82,142.78,7.0037]
[1724264677976,67.08835,142.82,142.76,24.5152]
[1724264678175,67.08835,142.82,142.77,7.0042]
[1724264678764,67.08835,142.82,142.78,7.0037]
[1724264679384,67.08835,142.82,142.77,7.0041]
[1724264680074,67.08835,142.82,142.78,7.0037]
[1724264683286,67.08835,142.82,142.71,2.3292]
[1724264683603,15.2014,142.8,142.75,7.0052]
[1724264683786,15.2014,142.8,142.76,7.0046]
[1724264683991,15.2014,142.8,142.77,7.0041]
[1724264684490,67.08835,142.82,142.78,7.0037]
[1724264696378,68.43976415,142.82,142.78,7.0037]
[1724264696578,67.08835,142.82,142.78,7.0037]
[1724264698085,68.43976415,142.82,142.78,7.0037]
[1724264699023,1.35141415,142.81,142.77,24.514]
[1724264699183,67.08835,142.82,142.77,24.514]
[1724264700111,1.55141415,142.79,142.74,24.5195]
[1724264700310,45.2,142.79,142.75,7.0051]
[1724264700524,0.2,142.79,142.74,17.5139]
[1724264700677,0.2,142.79,142.78,7.0037]
[1724264703887,0.2,142.79,142.78,42.0226]
[1724264704295,67.08835,142.82,142.81,24.508]
[1724264704616,67.08835,142.82,142.81,57.588]
[1724264705033,67.08835,142.82,142.81,17.5057]
[1724264705500,67.08835,142.82,142.81,24.508]
[1724264705898,67.08835,142.82,142.81,17.5057]
[1724264706303,67.08835,142.82,142.79,7.0031]
[1724264707719,1.35141415,142.81,142.75,17.5131]
[1724264707893,80.28835,142.82,142.75,17.5131]
[1724264708496,16.0676,142.81,142.76,7.0046]
[1724264709308,1.35141415,142.8,142.75,24.5182]
[1724264709509,1.35141415,142.79,142.75,17.5131]